bitfinex-derivatives/quotes_BTCF0:USTF0_20250809
["timestamp","ask_amount","ask_price","bid_price","bid_amount"]
[1754706463232,1.36305557,116580.0,116570.0,0.61847034]
[1754706463428,1.62479271,116580.0,116570.0,0.61847034]
[1754706464033,1.62479271,116580.0,116570.0,0.64110034]
[1754706469542,1.71057439,116580.0,116570.0,0.52305034]
[1754706469836,2.0631966,116580.0,116570.0,0.54568034]
[1754706470038,1.80145946,116580.0,116570.0,0.54568034]
[1754706470235,1.80145946,116580.0,116570.0,0.57088034]
[1754706470441,1.80145946,116580.0,116570.0,0.61847034]
[1754706472734,1.80145946,116580.0,116570.0,0.3567332]
[1754706472939,2.0631966,116580.0,116570.0,0.53269714]
[1754706473443,2.0631966,116580.0,116570.0,0.27096]
[1754706473847,2.0631966,116580.0,116570.0,0.53269714]
[1754706477642,1.80145946,116580.0,116570.0,0.53269714]
[1754706479739,1.44065946,116580.0,116570.0,0.53269714]
[1754706479942,1.80145946,116580.0,116570.0,0.53269714]
[1754706485153,1.80150312,116580.0,116570.0,0.53269714]
[1754706485844,2.06324026,116580.0,116570.0,0.53269714]
[1754706491164,2.06324026,116580.0,116570.0,0.51256933]
[1754706494965,2.06324026,116580.0,116570.0,0.25083219]
[1754706495150,2.06324026,116580.0,116570.0,0.51256933]
[1754706495461,2.06324026,116580.0,116570.0,0.46497933]
[1754706496654,1.53976598,116580.0,116570.0,0.46497933]
[1754706496850,2.06324026,116580.0,116570.0,0.46497933]
[1754706497150,1.53976598,116580.0,116570.0,0.46497933]
[1754706497357,2.06324026,116580.0,116570.0,0.46497933]
[1754706499452,2.06324026,116580.0,116570.0,0.41714933]
[1754706499656,2.06324026,116580.0,116570.0,0.44004933]
[1754706500055,1.70244026,116580.0,116570.0,0.44004933]
[1754706500262,2.06324026,116580.0,116570.0,0.44004933]
[1754706501354,1.53976598,116580.0,116570.0,0.46507933]
[1754706501564,2.06324026,116580.0,116570.0,0.47924933]
[1754706504067,1.70244026,116580.0,116570.0,0.47924933]
[1754706504365,2.06324026,116580.0,116570.0,0.47924933]
[1754706505366,1.53976598,116580.0,116570.0,0.21751219]
[1754706505568,2.06324026,116580.0,116570.0,0.47924933]
[1754706517475,2.06324026,116580.0,116570.0,0.51172933]
[1754706521182,2.06324026,116580.0,116570.0,0.47924933]
[1754706521386,2.06324026,116580.0,116570.0,0.46507933]
[1754706521578,1.53976598,116580.0,116570.0,0.46507933]
[1754706521884,2.06324026,116580.0,116570.0,0.46507933]
[1754706522985,2.06324026,116580.0,116570.0,0.20334219]
[1754706523187,2.06324026,116580.0,116570.0,0.46507933]
[1754706523875,2.06324026,116580.0,116570.0,0.51146933]
[1754706524890,1.80150312,116580.0,116570.0,0.51146933]
[1754706525486,2.06324026,116580.0,116570.0,0.51146933]
[1754706529682,1.53976598,116580.0,116570.0,0.51146933]
[1754706529893,2.06324026,116580.0,116570.0,0.51146933]
[1754706530792,2.06324026,116580.0,116570.0,0.24973219]
[1754706530993,2.06324026,116580.0,116570.0,0.51146933]
[1754706532390,2.06324026,116580.0,116570.0,0.46507933]
[1754706536094,2.06324026,116580.0,116570.0,0.47898933]
[1754706536696,2.06324026,116580.0,116570.0,0.51146933]
[1754706537089,1.80150312,116580.0,116570.0,0.51146933]
[1754706542399,1.80150312,116580.0,116570.0,0.24973219]
[1754706542700,1.80150312,116580.0,116570.0,0.51146933]
[1754706543401,2.06324026,116580.0,116570.0,0.51146933]
[1754706545402,1.44070312,116580.0,116570.0,0.51146933]
[1754706545603,1.80150312,116580.0,116570.0,0.51146933]
[1754706547402,1.44070312,116580.0,116570.0,0.51146933]
[1754706547605,1.80150312,116580.0,116570.0,0.51146933]
[1754706548708,1.53976598,116580.0,116570.0,0.51146933]
[1754706548901,1.80150312,116580.0,116570.0,0.51146933]
[1754706549204,1.53976598,116580.0,116570.0,0.51146933]
[1754706549406,1.80150312,116580.0,116570.0,0.51146933]
[1754706549904,1.80150312,116580.0,116570.0,0.50273933]
[1754706550105,1.80150312,116580.0,116570.0,0.53695933]
[1754706556010,2.06324026,116580.0,116570.0,0.53695933]
[1754706558316,2.06324026,116580.0,116570.0,0.46507933]
[1754706558710,2.06324026,116580.0,116570.0,0.20334219]
[1754706558914,2.06324026,116580.0,116570.0,0.46507933]
[1754706561113,1.53976598,116580.0,116570.0,0.46507933]
[1754706561308,2.06324026,116580.0,116570.0,0.19408219]
[1754706561509,2.06324026,116580.0,116570.0,0.44004933]
[1754706563415,1.53976598,116580.0,116570.0,0.44004933]
[1754706563716,2.06324026,116580.0,116570.0,0.44004933]
[1754706571527,2.06324026,116580.0,116570.0,0.17831219]
[1754706571726,2.06324026,116580.0,116570.0,0.44004933]
[1754706572622,2.06204026,116580.0,116570.0,0.44004933]
[1754706573118,1.28344026,116580.0,116570.0,0.44004933]
[1754706573324,2.06204026,116580.0,116570.0,0.44004933]
[1754706575025,2.06204026,116580.0,116570.0,0.45517933]
[1754706575522,2.06204026,116580.0,116570.0,0.19344219]
[1754706575724,2.06204026,116580.0,116570.0,0.45517933]
[1754706575924,2.06204026,116580.0,116570.0,0.19344219]
[1754706576127,2.06204026,116580.0,116570.0,0.45517933]
[1754706577535,2.06204026,116580.0,116570.0,0.43456838]
[1754706582030,1.53856598,116580.0,116570.0,0.43456838]
[1754706582329,2.06204026,116580.0,116570.0,0.43456838]
[1754706583924,1.53856598,116580.0,116570.0,0.43456838]
[1754706584123,2.06204026,116580.0,116570.0,0.17283124]
[1754706584529,2.06204026,116580.0,116570.0,0.43456838]
[1754706585835,2.06204026,116580.0,116570.0,0.47531054]
[1754706587639,1.53856598,116580.0,116570.0,0.47531054]
[1754706587831,2.06204026,116580.0,116570.0,0.47531054]
[1754706594344,2.06204026,116580.0,116570.0,0.48443054]
[1754706594742,2.06204026,116580.0,116570.0,0.49397054]
[1754706595042,2.06674026,116580.0,116570.0,0.49397054]
[1754706595243,2.06674026,116580.0,116570.0,0.2322334]
[1754706595439,2.06674026,116580.0,116570.0,0.49397054]
[1754706596948,2.06674026,116580.0,116570.0,0.49197054]
[1754706597140,2.07174026,116580.0,116570.0,0.48997054]
[1754706599847,2.07174026,116580.0,116570.0,0.2282334]
[1754706600044,2.07174026,116580.0,116570.0,0.48997054]
[1754706600243,2.07174026,116580.0,116570.0,0.2282334]
[1754706600443,2.07174026,116580.0,116570.0,0.48997054]
[1754706602146,2.07174026,116580.0,116570.0,0.1424602]
[1754706602446,2.07174026,116580.0,116570.0,0.40419734]
[1754706602747,2.07174026,116580.0,116570.0,0.1424602]
[1754706603047,2.07174026,116580.0,116570.0,0.40419734]
[1754706603344,2.07174026,116580.0,116570.0,0.1424602]
[1754706605447,2.07174026,116580.0,116570.0,0.02657433]
[1754706607454,0.1936013,116560.0,116550.0,0.53886294]
[1754706607752,1.24815844,116560.0,116550.0,0.55306294]
[1754706608251,1.33394012,116560.0,116550.0,0.55306294]
[1754706608650,1.40407036,116560.0,116550.0,0.55506294]
[1754706608950,1.42389031,116560.0,116550.0,0.55706294]
[1754706609254,1.40407036,116560.0,116550.0,0.55706294]
[1754706610448,1.7846824,116560.0,116550.0,0.55706294]
[1754706612449,1.88186715,116560.0,116550.0,0.47678294]
[1754706612751,1.88186715,116560.0,116550.0,0.48596294]
[1754706614151,1.88186715,116560.0,116550.0,0.2242258]
[1754706614450,1.88185621,116560.0,116550.0,0.48596294]
[1754706615151,1.86205511,116560.0,116550.0,0.48596294]
[1754706616654,1.87075532,116560.0,116550.0,0.48596294]
[1754706621954,2.13249246,116560.0,116550.0,0.35152504]
[1754706622557,2.13249246,116560.0,116550.0,0.37587504]
[1754706622956,1.87075532,116560.0,116550.0,0.37587504]
[1754706623152,2.13249246,116560.0,116550.0,0.37587504]
[1754706625260,2.13249246,116560.0,116550.0,0.1141379]
[1754706625455,2.13249246,116560.0,116550.0,0.37587504]
[1754706626060,2.13249246,116560.0,116550.0,0.1141379]
[1754706626259,2.13249246,116560.0,116550.0,0.37587504]
[1754706626759,2.15241474,116560.0,116550.0,0.37587504]
[1754706628058,2.15241474,116560.0,116550.0,0.35152504]
[1754706628861,2.15241474,116560.0,116550.0,0.0897879]
[1754706629054,2.15241474,116560.0,116550.0,0.35152504]
[1754706630761,2.15241474,116560.0,116550.0,0.1141379]
[1754706633759,2.15241474,116560.0,116550.0,0.0897879]
[1754706641165,1.62894046,116560.0,116550.0,0.0897879]
[1754706641371,2.15241474,116560.0,116550.0,0.0897879]
[1754706651977,2.15241474,116560.0,116550.0,0.1128879]
[1754706658278,1.62894046,116560.0,116550.0,0.1128879]
[1754706658479,2.15241474,116560.0,116550.0,0.1128879]
[1754706659874,2.15241474,116560.0,116550.0,0.0897879]
[1754706660280,2.15241474,116560.0,116550.0,0.0897886]
[1754706664787,1.62894046,116560.0,116550.0,0.0897886]
[1754706664989,2.15241474,116560.0,116550.0,0.0897886]
[1754706672392,2.51321474,116560.0,116550.0,0.0897886]
[1754706674097,2.51321474,116560.0,116550.0,0.04903953]
[1754706679497,0.1323686,116550.0,116540.0,0.45575711]
[1754706679799,0.94636746,116550.0,116540.0,0.71749425]
[1754706680000,1.81016386,116550.0,116540.0,0.71749425]
[1754706680200,1.81016386,116550.0,116540.0,0.74038425]
[1754706681501,1.81016386,116550.0,116540.0,0.74338425]
[1754706682101,1.81016386,116550.0,116540.0,0.74538425]
[1754706683101,1.80546386,116550.0,116540.0,0.74538425]
[1754706686102,1.54372672,116550.0,116540.0,0.74538425]
[1754706686304,1.80546386,116550.0,116540.0,0.74538425]
[1754706690006,1.54372672,116550.0,116540.0,0.74538425]
[1754706690304,1.80546386,116550.0,116540.0,0.74538425]
[1754706692010,1.81036386,116550.0,116540.0,0.74538425]
[1754706697410,1.81036386,116550.0,116540.0,0.67568425]
[1754706697602,1.81036386,116550.0,116540.0,0.63588105]
[1754706697801,1.81036386,116550.0,116540.0,0.65753105]
[1754706699008,1.81036386,116550.0,116540.0,0.39579391]
[1754706699206,1.81036386,116550.0,116540.0,0.65753105]
[1754706702011,1.81036386,116550.0,116540.0,0.39579391]
[1754706702413,1.81036386,116550.0,116540.0,0.3780896]
[1754706703714,1.54862672,116550.0,116540.0,0.3780896]
[1754706704013,1.81036386,116550.0,116540.0,0.3780896]
[1754706704912,1.54862672,116550.0,116540.0,0.3780896]
[1754706705113,1.81036386,116550.0,116540.0,0.3780896]
[1754706713421,1.54862672,116550.0,116540.0,0.3780896]
[1754706713616,1.81036386,116550.0,116540.0,0.3780896]
[1754706714419,1.81036386,116550.0,116540.0,0.63982674]
[1754706717021,1.81036386,116550.0,116540.0,0.3780896]
[1754706720023,1.44956386,116550.0,116540.0,0.3780896]
[1754706720220,1.81036386,116550.0,116540.0,0.3246096]
[1754706720418,1.81036386,116550.0,116540.0,0.3104496]
[1754706720616,1.81036386,116550.0,116540.0,0.2850596]
[1754706721221,1.81036386,116550.0,116540.0,0.54679674]
[1754706721521,1.81036386,116550.0,116540.0,0.2850596]
[1754706727930,1.81036386,116550.0,116540.0,0.1992664]
[1754706728432,1.81036386,116550.0,116540.0,0.1765864]
[1754706728832,1.81036386,116550.0,116540.0,0.1991164]
[1754706751762,1.54862672,116550.0,116540.0,0.1991164]
[1754706752158,1.81036386,116550.0,116540.0,0.1991164]
[1754706756763,1.54862672,116550.0,116540.0,0.1991164]
[1754706756964,1.81036386,116550.0,116540.0,0.1991164]
[1754706768682,1.81060654,116550.0,116540.0,0.1991164]
[1754706771881,1.03260654,116550.0,116540.0,0.1991164]
[1754706772082,1.81028654,116550.0,116540.0,0.2249864]
[1754706776091,1.81024898,116550.0,116540.0,0.2249864]
[1754706797919,1.44944898,116550.0,116540.0,0.2249864]
[1754706798114,1.81024898,116550.0,116540.0,0.2249864]
[1754706803226,2.07198612,116550.0,116540.0,0.0907932]
[1754706803724,1.81024898,116550.0,116540.0,0.0907932]
[1754706804022,1.03256898,116550.0,116540.0,0.0907932]
[1754706804230,2.07182612,116550.0,116540.0,0.1137032]
[1754706804724,1.81008898,116550.0,116540.0,0.1137032]
[1754706805220,1.54835184,116550.0,116540.0,0.1137032]
[1754706805524,1.81008898,116550.0,116540.0,0.1137032]
[1754706807723,1.81008898,116550.0,116540.0,0.09356976]
[1754706824444,1.54835184,116550.0,116540.0,0.09356976]
[1754706824743,1.81008898,116550.0,116540.0,0.09356976]
[1754706833355,1.81008898,116550.0,116540.0,0.07065976]
[1754706843266,1.80518898,116550.0,116540.0,0.07065976]
[1754706843670,1.81008898,116550.0,116540.0,0.07065976]
[1754706846868,1.80518898,116550.0,116540.0,0.07065976]
[1754706847068,1.81008898,116550.0,116540.0,0.07065976]
[1754706857277,2.07182612,116550.0,116540.0,0.07065976]
[1754706857681,1.81008898,116550.0,116540.0,0.07065976]
[1754706858580,1.81012865,116550.0,116540.0,0.07065976]
[1754706865084,2.07186579,116550.0,116540.0,0.07065976]
[1754706869284,1.81012865,116550.0,116540.0,0.09474976]
[1754706874992,1.54839151,116550.0,116540.0,0.09474976]
[1754706875191,1.81012865,116550.0,116540.0,0.09474976]
[1754706880297,1.81012865,116550.0,116540.0,0.12009976]
[1754706880494,1.81012865,116550.0,116540.0,0.13408976]
[1754706881799,1.81012865,116550.0,116540.0,0.12009976]
[1754706882900,1.81012865,116550.0,116540.0,0.11016976]
[1754706883101,1.81012865,116550.0,116540.0,0.09474976]
[1754706887002,2.07186579,116550.0,116540.0,0.09474976]
[1754706889501,2.07186579,116550.0,116540.0,0.07065976]
[1754706900710,1.81012865,116550.0,116540.0,0.07065976]
[1754706904419,2.07186579,116550.0,116540.0,0.005]
[1754706905711,2.07486579,116550.0,116540.0,0.003]
[1754706906622,2.07486579,116550.0,116540.0,0.088796]
[1754706907018,2.07886579,116550.0,116540.0,0.085796]
[1754706914126,2.05869872,116550.0,116540.0,0.085796]
[1754706914317,2.07905408,116550.0,116540.0,0.085796]
[1754706917528,0.133266,116540.0,116530.0,0.70334674]
[1754706917729,1.10703564,116540.0,116530.0,0.70334674]
[1754706917926,1.20013783,116540.0,116530.0,0.70334674]
[1754706918325,1.28594159,116540.0,116530.0,0.70334674]
[1754706918730,1.28794159,116540.0,116530.0,0.70334674]
[1754706919931,1.28794159,116540.0,116530.0,0.72479674]
[1754706920827,1.28794159,116540.0,116530.0,0.63899434]
[1754706921032,1.28794159,116540.0,116530.0,0.3772572]
[1754706921235,1.28794159,116540.0,116530.0,0.63899434]
[1754706922134,0.76446731,116540.0,116530.0,0.63899434]
[1754706922435,1.28794159,116540.0,116530.0,0.63899434]
[1754706922930,0.66540445,116540.0,116530.0,0.63899434]
[1754706924033,1.02620445,116540.0,116530.0,0.63899434]
[1754706927838,0.76446731,116540.0,116530.0,0.63899434]
[1754706928039,1.02620445,116540.0,116530.0,0.63899434]
[1754706934939,1.02620445,116540.0,116530.0,0.3772572]
[1754706935146,1.02620445,116540.0,116530.0,0.63899434]
[1754706935745,1.02620445,116540.0,116530.0,0.3772572]
[1754706935942,1.02620445,116540.0,116530.0,0.63899434]
[1754706938445,1.02620445,116540.0,116530.0,0.3772572]
[1754706938642,1.02620445,116540.0,116530.0,0.63899434]
[1754706941652,0.76446731,116540.0,116530.0,0.63899434]
[1754706941950,1.02620445,116540.0,116530.0,0.63899434]
[1754706943556,0.76446731,116540.0,116530.0,0.63899434]
[1754706943747,1.02620445,116540.0,116530.0,0.63899434]
[1754706946758,0.66540445,116540.0,116530.0,0.63899434]
[1754706947060,1.02620445,116540.0,116530.0,0.63899434]
[1754706948459,0.76446731,116540.0,116530.0,0.63899434]
[1754706948661,1.02620445,116540.0,116530.0,0.63899434]
[1754706958366,1.02620445,116540.0,116530.0,0.3772572]
[1754706958566,1.02620445,116540.0,116530.0,0.63899434]
[1754706968162,1.28794159,116540.0,116530.0,0.63899434]
[1754706968568,1.02620445,116540.0,116530.0,0.63899434]
[1754706969074,0.66540445,116540.0,116530.0,0.63899434]
[1754706969275,1.02620445,116540.0,116530.0,0.63899434]
[1754706972777,1.28794159,116540.0,116530.0,0.63899434]
[1754706974174,1.28794159,116540.0,116530.0,0.3772572]
[1754706974479,1.28794159,116540.0,116530.0,0.63899434]
[1754706975477,1.02620445,116540.0,116530.0,0.63899434]
[1754706975882,1.02620445,116540.0,116530.0,0.3772572]
[1754706976080,1.02620445,116540.0,116530.0,0.63899434]
[1754706976479,1.28794159,116540.0,116530.0,0.63899434]
[1754706978583,1.29294159,116540.0,116530.0,0.63899434]
[1754706981986,0.76946731,116540.0,116530.0,0.63899434]
[1754706982182,1.29294159,116540.0,116530.0,0.63899434]
[1754706987987,1.03120445,116540.0,116530.0,0.63899434]
[1754706989387,1.29294159,116540.0,116530.0,0.63899434]
[1754706992387,1.29294159,116540.0,116530.0,0.3084672]
[1754706992588,1.29294159,116540.0,116530.0,0.2810272]
[1754706992990,1.29294159,116540.0,116530.0,0.3069572]
[1754706993191,1.29294159,116540.0,116530.0,0.3208372]
[1754706993392,1.29294159,116540.0,116530.0,0.3534772]
[1754706994594,1.29294159,116540.0,116530.0,0.2676748]
[1754706994790,1.29294159,116540.0,116530.0,0.52941194]
[1754706995895,1.29294159,116540.0,116530.0,0.2676748]
[1754706996087,1.29294159,116540.0,116530.0,0.52941194]
[1754706996797,1.29294159,116540.0,116530.0,0.2676748]
[1754706996999,1.29294159,116540.0,116530.0,0.52941194]
[1754706997496,1.29294159,116540.0,116530.0,0.2676748]
[1754706997688,1.29294159,116540.0,116530.0,0.52941194]
[1754706998795,1.29294159,116540.0,116530.0,0.2676748]
[1754706999093,1.29294159,116540.0,116530.0,0.1353524]
[1754706999289,0.2034234,116530.0,116520.0,0.17162]
[1754706999490,1.6237559,116530.0,116520.0,0.19572]
[1754706999692,1.6237559,116530.0,116520.0,0.48342714]
[1754706999994,1.70957439,116530.0,116520.0,0.55221714]
[1754707000394,1.70957439,116530.0,116520.0,0.55321714]
[1754707000997,1.53797439,116530.0,116520.0,0.55321714]
[1754707001200,1.62377779,116530.0,116520.0,0.55321714]
[1754707001394,1.62377779,116530.0,116520.0,0.55521714]
[1754707003698,1.36204065,116530.0,116520.0,0.55521714]
[1754707003899,1.62377779,116530.0,116520.0,0.55521714]
[1754707006800,1.60342243,116530.0,116520.0,0.55521714]
[1754707008903,1.60342243,116530.0,116520.0,0.19872]
[1754707009103,1.60342243,116530.0,116520.0,0.23828]
[1754707009408,1.60342243,116530.0,116520.0,0.27018]
[1754707010806,1.62349424,116530.0,116520.0,0.27018]
[1754707014506,1.62349424,116530.0,116520.0,0.17462]
[1754707014710,1.69924739,116530.0,116520.0,0.19872]
[1754707016212,1.71941741,116530.0,116520.0,0.19872]
[1754707026216,1.71941741,116530.0,116520.0,0.17462]
[1754707026423,1.71941741,116530.0,116520.0,0.19759]
[1754707030829,1.98115455,116530.0,116520.0,0.19759]
[1754707033128,1.71941741,116530.0,116520.0,0.19759]
[1754707036432,1.98115455,116530.0,116520.0,0.19759]
[1754707040736,1.62035455,116530.0,116520.0,0.19759]
[1754707040937,1.98115455,116530.0,116520.0,0.19759]
[1754707043940,1.71941741,116530.0,116520.0,0.19759]
[1754707044844,1.98115455,116530.0,116520.0,0.19759]
[1754707046543,1.71941741,116530.0,116520.0,0.19759]
[1754707052947,1.98115455,116530.0,116520.0,0.19759]
[1754707053968,1.71941741,116530.0,116520.0,0.19759]
[1754707055644,1.71941741,116530.0,116520.0,0.21377]
[1754707060547,1.71941741,116530.0,116520.0,0.12796]
[1754707076566,1.45768027,116530.0,116520.0,0.12796]
[1754707076766,1.71941741,116530.0,116520.0,0.12796]
[1754707078561,1.69924739,116530.0,116520.0,0.12796]
[1754707078766,1.71935744,116530.0,116520.0,0.12796]
[1754707083168,1.4576202,116530.0,116520.0,0.43481714]
[1754707083368,1.4576202,116530.0,116520.0,0.72818428]
[1754707083664,1.3946769,116530.0,116520.0,0.72818428]
[1754707083871,1.0338769,116530.0,116520.0,0.72818428]
[1754707084367,1.29561404,116530.0,116520.0,0.72818428]
[1754707085867,0.11593501,116530.0,116520.0,0.72818428]
[1754707086073,0.93017496,116530.0,116520.0,0.72818428]
[1754707086666,1.1919121,116530.0,116520.0,0.72818428]
[1754707086866,1.21201375,116530.0,116520.0,0.72818428]
[1754707087466,0.95027661,116530.0,116520.0,0.72818428]
[1754707090875,1.03608001,116530.0,116520.0,0.72818428]
[1754707094377,1.29781715,116530.0,116520.0,0.72818428]
[1754707096874,1.2777155,116530.0,116520.0,0.72818428]
[1754707097582,1.2777155,116530.0,116520.0,0.20471]
[1754707097780,1.2777155,116530.0,116520.0,0.72818428]
[1754707100279,1.2777155,116530.0,116520.0,0.20471]
[1754707100480,1.2777155,116530.0,116520.0,0.72818428]
[1754707102888,1.2777155,116530.0,116520.0,0.20471]
[1754707103189,1.2777155,116530.0,116520.0,0.72818428]
[1754707105090,1.2777155,116530.0,116520.0,0.46644714]
[1754707106085,1.2777155,116530.0,116520.0,0.20471]
[1754707106291,1.2777155,116530.0,116520.0,0.46644714]
[1754707108093,1.01597836,116530.0,116520.0,0.46644714]
[1754707108294,1.2777155,116530.0,116520.0,0.46644714]
[1754707108893,1.6385155,116530.0,116520.0,0.46644714]
[1754707109394,1.2777155,116530.0,116520.0,0.46644714]
[1754707113296,1.29776327,116530.0,116520.0,0.46644714]
[1754707116689,1.03602613,116530.0,116520.0,0.46644714]
[1754707117203,0.85427777,116530.0,116520.0,0.72818428]
[1754707117401,1.11601491,116530.0,116520.0,0.72818428]
[1754707118004,1.20181831,116530.0,116520.0,0.72818428]
[1754707118205,0.94008117,116530.0,116520.0,0.72818428]
[1754707119305,1.11601491,116530.0,116520.0,0.72818428]
[1754707120105,1.20181831,116530.0,116520.0,0.72818428]
[1754707120804,1.11601491,116530.0,116520.0,0.72818428]
[1754707122906,0.85427777,116530.0,116520.0,0.72818428]
[1754707123308,0.07691777,116530.0,116520.0,0.72818428]
[1754707123809,0.94008107,116530.0,116520.0,0.72818428]
[1754707125310,1.20181821,116530.0,116520.0,0.72818428]
[1754707127413,1.11601491,116530.0,116520.0,0.72818428]
[1754707127817,0.85427777,116530.0,116520.0,0.72818428]
[1754707128017,1.11601491,116530.0,116520.0,0.72818428]
[1754707128719,1.20181831,116530.0,116520.0,0.72818428]
[1754707132522,0.16272117,116530.0,116520.0,0.72818428]
[1754707132718,1.20181831,116530.0,116520.0,0.72818428]
[1754707132922,1.20181831,116530.0,116520.0,0.20471]
[1754707133223,1.20181831,116530.0,116520.0,0.72818428]
[1754707134122,0.94008117,116530.0,116520.0,0.72818428]
[1754707134427,0.42445831,116530.0,116520.0,0.72818428]
[1754707134721,1.20181831,116530.0,116520.0,0.72818428]
[1754707136618,1.20181831,116530.0,116520.0,0.20471]
[1754707136817,1.20181831,116530.0,116520.0,0.72818428]
[1754707137713,1.20181831,116530.0,116520.0,0.20471]
[1754707137920,1.20181831,116530.0,116520.0,0.72818428]
[1754707144625,1.20181831,116530.0,116520.0,0.20471]
[1754707144924,1.20181831,116530.0,116520.0,0.72818428]
[1754707150030,0.42445831,116530.0,116520.0,0.72818428]
[1754707150229,1.20177831,116530.0,116520.0,0.72818428]
[1754707152834,0.94004117,116530.0,116520.0,0.72818428]
[1754707153024,1.20177831,116530.0,116520.0,0.72818428]
[1754707153331,0.94004117,116530.0,116520.0,0.72818428]
[1754707153631,1.20177831,116530.0,116520.0,0.72818428]
[1754707156428,1.20177831,116530.0,116520.0,0.20471]
[1754707156625,1.20177831,116530.0,116520.0,0.72818428]
[1754707161041,0.42445831,116530.0,116520.0,0.72818428]
[1754707161239,1.20177831,116530.0,116520.0,0.72818428]
[1754707164341,0.94004117,116530.0,116520.0,0.72818428]
[1754707164841,1.20177831,116530.0,116520.0,0.46644714]
[1754707170753,1.20177831,116530.0,116520.0,0.72818428]
[1754707181254,0.94004117,116530.0,116520.0,0.72818428]
[1754707181459,1.20177831,116530.0,116520.0,0.72818428]
[1754707192163,0.42445831,116530.0,116520.0,0.72818428]
[1754707192653,1.20173831,116530.0,116520.0,0.72818428]
[1754707192859,0.42445831,116530.0,116520.0,0.72818428]
[1754707193058,1.20173831,116530.0,116520.0,0.72818428]
[1754707193764,0.42445831,116530.0,116520.0,0.72818428]
[1754707194063,1.20173831,116530.0,116520.0,0.72818428]
[1754707195864,0.94000117,116530.0,116520.0,0.72818428]
[1754707196065,1.20173831,116530.0,116520.0,0.72818428]
[1754707196261,1.20173831,116530.0,116520.0,0.20471]
[1754707196462,1.20173831,116530.0,116520.0,0.72818428]
[1754707198867,1.18169054,116530.0,116520.0,0.72818428]
[1754707199062,1.2017184,116530.0,116520.0,0.72818428]
[1754707201866,0.93998126,116530.0,116520.0,0.72818428]
[1754707202066,1.2017184,116530.0,116520.0,0.72818428]
[1754707203856,0.93998126,116530.0,116520.0,0.72818428]
[1754707204062,1.2017184,116530.0,116520.0,0.72818428]
[1754707209370,1.2017184,116530.0,116520.0,0.46644714]
[1754707212381,0.93998126,116530.0,116520.0,0.46644714]
[1754707212582,1.2017184,116530.0,116520.0,0.46644714]
[1754707222093,1.2017184,116530.0,116520.0,0.72818428]
[1754707223894,0.4244384,116530.0,116520.0,0.72818428]
[1754707224094,1.2016784,116530.0,116520.0,0.72818428]
[1754707231001,0.93994126,116530.0,116520.0,0.72818428]
[1754707231298,1.2016784,116530.0,116520.0,0.72818428]
[1754707231698,1.2016784,116530.0,116520.0,0.20471]
[1754707232100,1.2016784,116530.0,116520.0,0.46644714]
[1754707233299,0.93994126,116530.0,116520.0,0.46644714]
[1754707233497,1.2016784,116530.0,116520.0,0.46644714]
[1754707234202,0.93994126,116530.0,116520.0,0.46644714]
[1754707234398,1.2016784,116530.0,116520.0,0.72818428]
[1754707241504,0.93994126,116530.0,116520.0,0.20471]
[1754707241703,1.2016784,116530.0,116520.0,0.72818428]
[1754707241905,1.2016784,116530.0,116520.0,0.20471]
[1754707242105,1.2016784,116530.0,116520.0,0.72818428]
[1754707244030,1.2016784,116530.0,116520.0,0.46644714]
[1754707244706,0.93994126,116530.0,116520.0,0.46644714]
[1754707244908,1.2016784,116530.0,116520.0,0.46644714]
[1754707246911,1.5624784,116530.0,116520.0,0.46644714]
[1754707247806,1.2016784,116530.0,116520.0,0.46644714]
[1754707248008,1.5624784,116530.0,116520.0,0.72818428]
[1754707248707,1.5624784,116530.0,116520.0,0.46644714]
[1754707249508,1.5624784,116530.0,116520.0,0.20471]
[1754707249807,1.5624784,116530.0,116520.0,0.46644714]
[1754707260519,1.56255906,116530.0,116520.0,0.46644714]
[1754707270719,1.20175906,116530.0,116520.0,0.46644714]
[1754707271121,1.56255906,116530.0,116520.0,0.46644714]
[1754707272122,1.30082192,116530.0,116520.0,0.46644714]
[1754707272322,1.56255906,116530.0,116520.0,0.46644714]
[1754707272518,1.30082192,116530.0,116520.0,0.46644714]
[1754707272719,1.56255906,116530.0,116520.0,0.46644714]
[1754707274524,1.30082192,116530.0,116520.0,0.46644714]
[1754707274721,1.56255906,116530.0,116520.0,0.46644714]
[1754707279922,1.30082192,116530.0,116520.0,0.46644714]
[1754707280120,1.56255906,116530.0,116520.0,0.46644714]
[1754707282025,1.30082192,116530.0,116520.0,0.46644714]
[1754707282226,1.56255906,116530.0,116520.0,0.46644714]
[1754707282626,1.30178182,116530.0,116520.0,0.73135428]
[1754707283824,1.56351896,116530.0,116520.0,0.73135428]
[1754707286023,1.56351896,116530.0,116520.0,0.46961714]
[1754707286528,1.56351896,116530.0,116520.0,0.73135428]
[1754707287231,1.56345035,116530.0,116520.0,0.73135428]
[1754707287427,0.4695033,116530.0,116520.0,0.73135428]
[1754707287734,1.21459874,116530.0,116520.0,0.73135428]
[1754707287929,1.19456,116530.0,116520.0,0.73135428]
[1754707288632,1.2803633,116530.0,116520.0,0.73135428]
[1754707290032,0.5020033,116530.0,116520.0,0.73135428]
[1754707290229,1.2804833,116530.0,116520.0,0.73135428]
[1754707296546,1.19468,116530.0,116520.0,0.73135428]
[1754707298045,0.4162,116530.0,116520.0,0.73135428]
[1754707298545,1.19444,116530.0,116520.0,0.73135428]
[1754707299546,1.2802435,116530.0,116520.0,0.73135428]
[1754707308151,1.19444,116530.0,116520.0,0.73135428]
[1754707309355,1.2802436,116530.0,116520.0,0.73135428]
[1754707311055,0.5020036,116530.0,116520.0,0.73135428]
[1754707311256,1.2797236,116530.0,116520.0,0.73135428]
[1754707313151,1.19392,116530.0,116520.0,0.73135428]
[1754707313346,0.3482051,116540.0,116530.0,0.2039935]
[1754707313347,0.03941,116540.0,116530.0,0.2039935]
[1754707313655,0.54814225,116560.0,116550.0,0.0857888]
[1754707313850,1.72272939,116560.0,116550.0,0.37094594]
[1754707314051,1.80775045,116560.0,116550.0,0.37094594]
[1754707314250,0.76757331,116560.0,116550.0,0.37094594]
[1754707314454,1.80787045,116560.0,116550.0,0.37094594]
[1754707315559,1.02931045,116560.0,116550.0,0.37094594]
[1754707315964,1.80779045,116560.0,116550.0,0.37094594]
[1754707316260,1.55105331,116560.0,116550.0,0.1092088]
[1754707316461,1.81279045,116560.0,116550.0,0.1092088]
[1754707316651,1.81279045,116560.0,116550.0,0.37094594]
[1754707316852,1.81279045,116560.0,116550.0,0.1092088]
[1754707317054,1.81279045,116560.0,116550.0,0.37094594]
[1754707317355,1.81679045,116560.0,116550.0,0.37094594]
[1754707319756,1.55505331,116560.0,116550.0,0.37094594]
[1754707319961,1.81679045,116560.0,116550.0,0.1092088]
[1754707320161,1.81679045,116560.0,116550.0,0.37094594]
[1754707320461,1.03831045,116560.0,116550.0,0.38696594]
[1754707320849,1.03421045,116560.0,116550.0,0.38696594]
[1754707321058,1.81449045,116560.0,116550.0,0.38696594]
[1754707321863,1.81449045,116560.0,116550.0,0.1252288]
[1754707322162,1.81449045,116560.0,116550.0,0.38696594]
[1754707322662,1.81449045,116560.0,116550.0,0.39689594]